[Event "Snabbschacks-SM 2025"]
[Site "Norrköping, Sweden"]
[Date "2025.09.27"]
[Round "1.3"]
[White "Odell Johansson, Leo"]
[Black "Livner, Anders"]
[Result "1-0"]
[TimeControl "25 min + 10 sec/move"]
[BlackTitle "FM"]
[WhiteElo "2025"]
[BlackElo "2292"]

1. c4 {[%clk 00:25:14]} {[%emt 00:00:05]} e6 {[%clk 00:25:19]} {[%emt
00:00:01]} 2. e4 {[%clk 00:25:23]} {[%emt 00:00:02]} d5 {[%clk 00:25:28]}
{[%emt 00:00:01]} 3. cxd5 {[%clk 00:25:32]} {[%emt 00:00:02]} exd5 {[%clk
00:25:37]} 4. exd5 {[%clk 00:25:40]} Nf6 {[%clk 00:25:43]} {[%emt 00:00:04]} 5.
Bb5+ {[%clk 00:25:48]} {[%emt 00:00:02]} Bd7 {[%clk 00:25:48]} {[%emt
00:00:05]} 6. Bc4 {[%clk 00:25:56]} {[%emt 00:00:02]} Bd6 {[%clk 00:25:44]}
{[%emt 00:00:14]} 7. Qe2+ {[%clk 00:26:03]} {[%emt 00:00:03]} Be7 {[%clk
00:25:33]} {[%emt 00:00:22]} 8. Nf3 {[%clk 00:26:00]} {[%emt 00:00:13]} O-O
{[%clk 00:25:40]} {[%emt 00:00:02]} 9. O-O {[%clk 00:26:07]} {[%emt 00:00:03]}
Bd6 {[%clk 00:25:50]} {[%emt 00:00:01]} 10. d4 {[%clk 00:25:55]} {[%emt
00:00:22]} Bg4 {[%clk 00:25:43]} {[%emt 00:00:17]} 11. h3 {[%clk 00:26:01]}
{[%emt 00:00:03]} Re8 {[%clk 00:25:09]} {[%emt 00:00:44]} 12. Qd3 {[%clk
00:26:00]} {[%emt 00:00:12]} Bh5 {[%clk 00:25:04]} {[%emt 00:00:14]} 13. Bg5
{[%clk 00:15:56]} {[%emt 00:10:14]} Nbd7 {[%clk 00:24:49]} {[%emt 00:00:25]} 14.
Nc3 {[%clk 00:07:19]} {[%emt 00:08:48]} h6 {[%clk 00:24:06]} {[%emt 00:00:52]}
15. Bh4 {[%clk 00:07:15]} {[%emt 00:00:14]} a6 {[%clk 00:23:03]} {[%emt
00:01:13]} 16. a4 {[%clk 00:06:12]} {[%emt 00:01:13]} g5 {[%clk 00:20:26]}
{[%emt 00:02:47]} 17. Bg3 {[%clk 00:06:17]} {[%emt 00:00:06]} Bg6 {[%clk
00:19:24]} {[%emt 00:01:12]} 18. Qd1 {[%clk 00:05:29]} {[%emt 00:00:57]} Nb6
{[%clk 00:18:25]} {[%emt 00:01:10]} 19. Bd3 {[%clk 00:04:20]} {[%emt 00:01:19]}
Bh5 {[%clk 00:17:09]} {[%emt 00:01:26]} 20. Bxd6 {[%clk 00:04:04]} {[%emt
00:00:26]} Qxd6 {[%clk 00:16:43]} {[%emt 00:00:36]} 21. Bf5 {[%clk 00:03:26]}
{[%emt 00:00:48]} Nbxd5 {[%clk 00:15:22]} {[%emt 00:01:31]} 22. g4 {[%clk
00:02:43]} {[%emt 00:00:52]} Bg6 {[%clk 00:15:29]} {[%emt 00:00:04]} 23. Bxg6
{[%clk 00:02:51]} {[%emt 00:00:02]} fxg6 {[%clk 00:15:37]} {[%emt 00:00:02]} 24.
Ne5 {[%clk 00:02:45]} {[%emt 00:00:16]} Kg7 {[%clk 00:14:58]} {[%emt 00:00:49]}
25. Qb3 {[%clk 00:01:34]} {[%emt 00:01:21]} Rab8 {[%clk 00:12:47]} {[%emt
00:02:21]} 26. Rae1 {[%clk 00:01:25]} {[%emt 00:00:19]} Re7 {[%clk 00:12:41]}
{[%emt 00:00:15]} 27. Nxd5 Nxd5 {[%clk 00:12:27]} 28. Re4 {[%clk 00:00:49]} c6
{[%clk 00:11:18]} {[%emt 00:01:20]} 29. Nc4 {[%clk 00:00:34]} {[%emt 00:00:24]}
Qc7 {[%clk 00:10:52]} {[%emt 00:00:35]} 30. Rfe1 {[%clk 00:00:37]} {[%emt
00:00:08]} Rxe4 {[%clk 00:10:05]} {[%emt 00:00:57]} 31. Rxe4 {[%clk 00:00:46]}
Rf8 {[%clk 00:10:05]} {[%emt 00:00:10]} 32. Ne5 {[%clk 00:00:52]} {[%emt
00:00:05]} Rd8 {[%clk 00:07:51]} {[%emt 00:02:23]} 33. Nd3 {[%clk 00:00:58]}
{[%emt 00:00:05]} b6 {[%clk 00:06:35]} {[%emt 00:01:26]} 34. Ne5 {[%clk
00:01:02]} {[%emt 00:00:05]} Nf6 {[%clk 00:06:19]} {[%emt 00:00:25]} 35. Re3
{[%clk 00:00:33]} {[%emt 00:00:36]} Rxd4 {[%clk 00:06:28]} {[%emt 00:00:06]} 36.
Qc2 {[%clk 00:00:13]} {[%emt 00:00:30]} Kg8 {[%clk 00:05:45]} {[%emt 00:00:52]}
37. Qxg6+ {[%clk 00:00:21]} {[%emt 00:00:03]} Qg7 {[%clk 00:05:55]} 38. Qxg7+
{[%clk 00:00:28]} {[%emt 00:00:03]} Kxg7 {[%clk 00:06:04]} 39. Nxc6 {[%clk
00:00:36]} {[%emt 00:00:03]} Rxa4 {[%clk 00:06:08]} {[%emt 00:00:05]} 40. Re7+
{[%clk 00:00:44]} {[%emt 00:00:02]} Kf8 {[%clk 00:06:08]} {[%emt 00:00:10]} 41.
Re6 {[%clk 00:00:48]} {[%emt 00:00:02]} Rf4 {[%clk 00:05:39]} {[%emt 00:00:41]}
42. Ne5 {[%clk 00:00:54]} {[%emt 00:00:06]} Kg7 {[%clk 00:05:07]} {[%emt
00:00:42]} 43. Rxb6 {[%clk 00:00:54]} {[%emt 00:00:10]} a5 {[%clk 00:04:59]}
{[%emt 00:00:18]} 44. Rb7+ {[%clk 00:01:02]} Kg8 {[%clk 00:05:06]} {[%emt
00:00:03]} 45. Nc6 {[%clk 00:00:36]} {[%emt 00:00:37]} Kf8 {[%clk 00:03:53]}
{[%emt 00:01:22]} 46. Nxa5 {[%clk 00:00:42]} {[%emt 00:00:05]} Ne4 {[%clk
00:04:03]} 47. Rb5 {[%clk 00:00:18]} {[%emt 00:00:33]} Nxf2 {[%clk 00:03:52]}
{[%emt 00:00:21]} 48. Kg2 {[%clk 00:00:20]} {[%emt 00:00:08]} Nd3 {[%clk
00:03:44]} {[%emt 00:00:17]} 49. b3 {[%clk 00:00:18]} {[%emt 00:00:12]} Ne1+
{[%clk 00:02:35]} {[%emt 00:01:20]} 50. Kg1 {[%clk 00:00:12]} {[%emt 00:00:15]}
Nf3+ {[%clk 00:02:39]} {[%emt 00:00:06]} 51. Kh1 {[%clk 00:00:19]} {[%emt
00:00:02]} Nd4 {[%clk 00:02:38]} {[%emt 00:00:13]} 52. Rb8+ {[%clk 00:00:26]}
{[%emt 00:00:03]} Kf7 {[%clk 00:02:00]} {[%emt 00:00:48]} 53. b4 {[%clk
00:00:33]} {[%emt 00:00:03]} Ke6 {[%clk 00:00:37]} {[%emt 00:01:33]} 54. b5
{[%clk 00:00:42]} Kd5 {[%clk 00:00:42]} {[%emt 00:00:05]} 55. b6 {[%clk
00:00:37]} {[%emt 00:00:15]} Rf2 {[%clk 00:00:51]} 56. Rd8+ {[%clk 00:00:42]}
{[%emt 00:00:05]} Ke4 {[%clk 00:00:37]} {[%emt 00:00:23]} 57. Rxd4+ {[%clk
00:00:50]} {[%emt 00:00:03]} Kxd4 {[%clk 00:00:47]} {[%emt 00:00:01]} 58. b7
{[%clk 00:01:00]} 1-0

[Event "Snabbschacks-SM 2025"]
[Site "Norrköping, Sweden"]
[Date "2025.09.27"]
[Round "4.5"]
[White "Stenman, Christoffer"]
[Black "Muntean, Victor"]
[Result "0-1"]
[TimeControl "25 min + 10 sec/move"]
[WhiteElo "2004"]
[BlackElo "2151"]

1. e4 {[%clk 00:25:17]} {[%emt 00:00:01]} e5 {[%clk 00:24:53]} {[%emt
00:00:21]} 2. Nf3 {[%clk 00:25:12]} {[%emt 00:00:22]} Nc6 {[%clk 00:25:01]}
{[%emt 00:00:02]} 3. Bc4 {[%clk 00:25:15]} {[%emt 00:00:07]} Nf6 {[%clk
00:25:09]} {[%emt 00:00:02]} 4. d3 {[%clk 00:25:22]} {[%emt 00:00:02]} h6
{[%clk 00:25:09]} {[%emt 00:00:10]} 5. O-O {[%clk 00:25:07]} {[%emt 00:00:25]}
d6 {[%clk 00:25:11]} {[%emt 00:00:09]} 6. c3 {[%clk 00:24:41]} {[%emt
00:00:37]} g5 {[%clk 00:22:34]} {[%emt 00:02:47]} 7. b4 {[%clk 00:20:15]}
{[%emt 00:04:36]} Bg7 {[%clk 00:22:15]} {[%emt 00:00:28]} 8. Qb3 {[%clk
00:19:10]} {[%emt 00:01:14]} O-O {[%clk 00:21:43]} {[%emt 00:00:42]} 9. Re1
{[%clk 00:18:40]} {[%emt 00:00:40]} Qe7 {[%clk 00:20:56]} {[%emt 00:00:58]} 10.
a4 {[%clk 00:18:02]} {[%emt 00:00:48]} Nh5 {[%clk 00:19:49]} {[%emt 00:01:16]}
11. Na3 {[%clk 00:15:03]} {[%emt 00:03:10]} Kh8 {[%clk 00:18:53]} {[%emt
00:01:06]} 12. Nc2 {[%clk 00:14:44]} {[%emt 00:00:29]} f5 {[%clk 00:17:35]}
{[%emt 00:01:28]} 13. exf5 {[%clk 00:14:24]} {[%emt 00:00:30]} Bxf5 {[%clk
00:17:33]} {[%emt 00:00:12]} 14. Ne3 {[%clk 00:14:30]} {[%emt 00:00:04]} Nf4
{[%clk 00:17:05]} {[%emt 00:00:37]} 15. Nxf5 {[%clk 00:13:58]} {[%emt
00:00:43]} Rxf5 {[%clk 00:17:12]} {[%emt 00:00:03]} 16. Bxf4 {[%clk 00:08:29]}
{[%emt 00:05:39]} Rxf4 {[%clk 00:17:16]} {[%emt 00:00:06]} 17. Re4 {[%clk
00:06:30]} {[%emt 00:02:09]} Rxe4 {[%clk 00:15:07]} {[%emt 00:02:19]} 18. dxe4
{[%clk 00:06:38]} {[%emt 00:00:02]} Qf6 {[%clk 00:15:09]} {[%emt 00:00:08]} 19.
Ra2 {[%clk 00:04:50]} {[%emt 00:01:59]} Ne7 {[%clk 00:14:48]} {[%emt 00:00:31]}
20. Qd1 {[%clk 00:03:58]} {[%emt 00:01:02]} Rf8 {[%clk 00:14:32]} {[%emt
00:00:26]} 21. Ne1 {[%clk 00:02:36]} {[%emt 00:01:31]} Qg6 {[%clk 00:13:15]}
{[%emt 00:01:27]} 22. Qe2 {[%clk 00:02:35]} {[%emt 00:00:12]} Rf4 {[%clk
00:12:33]} {[%emt 00:00:53]} 23. Bd3 {[%clk 00:01:51]} {[%emt 00:00:53]} g4
{[%clk 00:11:51]} {[%emt 00:00:52]} 24. Nc2 {[%clk 00:01:53]} {[%emt 00:00:08]}
h5 {[%clk 00:11:31]} {[%emt 00:00:30]} 25. Ne3 {[%clk 00:01:31]} {[%emt
00:00:32]} Qg5 {[%clk 00:10:48]} {[%emt 00:00:53]} 26. Ra1 {[%clk 00:00:57]}
{[%emt 00:00:44]} Rf8 {[%clk 00:07:50]} {[%emt 00:03:07]} 27. c4 {[%clk
00:00:55]} {[%emt 00:00:13]} Ng6 {[%clk 00:07:34]} {[%emt 00:00:26]} 28. g3
{[%clk 00:00:43]} {[%emt 00:00:22]} Nf4 {[%clk 00:06:38]} {[%emt 00:01:06]} 29.
gxf4 {[%clk 00:00:16]} {[%emt 00:00:37]} exf4 {[%clk 00:06:46]} {[%emt
00:00:02]} 30. Rc1 {[%clk 00:00:20]} {[%emt 00:00:05]} fxe3 {[%clk 00:05:55]}
{[%emt 00:01:02]} 31. Qxe3 {[%clk 00:00:28]} {[%emt 00:00:02]} Qxe3 32. fxe3
{[%clk 00:00:37]} Bh6 {[%clk 00:04:06]} {[%emt 00:00:02]} 33. Re1 {[%clk
00:00:38]} {[%emt 00:00:09]} Rf3 {[%clk 00:04:10]} {[%emt 00:00:06]} 34. e5
{[%clk 00:00:16]} {[%emt 00:00:33]} dxe5 {[%clk 00:03:26]} {[%emt 00:00:54]} 35.
Bg6 {[%clk 00:00:12]} {[%emt 00:00:13]} Bxe3+ {[%clk 00:03:10]} {[%emt
00:00:25]} 36. Kg2 {[%clk 00:00:21]} h4 {[%clk 00:02:32]} {[%emt 00:00:49]} 37.
Be4 {[%clk 00:00:14]} {[%emt 00:00:18]} Rf2+ {[%clk 00:02:28]} {[%emt
00:00:14]} 38. Kh1 {[%clk 00:00:13]} {[%emt 00:00:12]} Bf4 {[%clk 00:02:20]}
{[%emt 00:00:17]} 39. Bxb7 {[%clk 00:00:18]} {[%emt 00:00:05]} Rxh2+ {[%clk
00:02:13]} {[%emt 00:00:17]} 40. Kg1 {[%clk 00:00:28]} Rb2 {[%clk 00:02:13]}
{[%emt 00:00:11]} 41. Bc8 {[%clk 00:00:23]} {[%emt 00:00:15]} Rxb4 {[%clk
00:02:01]} {[%emt 00:00:21]} 42. Bxg4 {[%clk 00:00:30]} {[%emt 00:00:04]} Rxc4
{[%clk 00:01:58]} {[%emt 00:00:13]} 43. Bd7 {[%clk 00:00:39]} {[%emt 00:00:01]}
e4 {[%clk 00:01:37]} {[%emt 00:00:31]} 44. Bb5 {[%clk 00:00:43]} {[%emt
00:00:06]} Rd4 {[%clk 00:01:34]} {[%emt 00:00:12]} 45. Kg2 {[%clk 00:00:46]}
{[%emt 00:00:08]} e3 {[%clk 00:00:59]} {[%emt 00:00:46]} 46. Kf3 {[%clk
00:00:36]} {[%emt 00:00:19]} Kg7 {[%clk 00:00:52]} {[%emt 00:00:18]} 47. Rh1
{[%clk 00:00:37]} {[%emt 00:00:08]} Bg5 {[%clk 00:00:33]} {[%emt 00:00:29]} 48.
Rc1 {[%clk 00:00:46]} Rf4+ {[%clk 00:00:36]} {[%emt 00:00:07]} 49. Ke2 {[%clk
00:00:44]} {[%emt 00:00:12]} Rf2+ {[%clk 00:00:45]} {[%emt 00:00:01]} 50. Ke1
{[%clk 00:00:49]} {[%emt 00:00:05]} Bf4 {[%clk 00:00:48]} {[%emt 00:00:07]} 51.
Rc4 {[%clk 00:00:56]} {[%emt 00:00:03]} Bg3 {[%clk 00:00:43]} {[%emt 00:00:16]}
52. Re4 {[%clk 00:01:01]} {[%emt 00:00:04]} Rf4+ {[%clk 00:00:49]} {[%emt
00:00:04]} 0-1

[Event "Snabbschacks-SM 2025"]
[Site "Norrköping, Sweden"]
[Date "2025.09.27"]
[Round "1.4"]
[White "Nygren, Kim"]
[Black "Bergdahl, Daniel"]
[Result "1/2-1/2"]
[TimeControl "25 min + 10 sec/move"]
[WhiteTitle "CM"]
[WhiteElo "2173"]
[BlackElo "1864"]

1. e4 {[%clk 00:25:17]} {[%emt 00:00:02]} c6 {[%clk 00:25:19]} 2. d4 {[%clk
00:25:26]} {[%emt 00:00:02]} d5 {[%clk 00:25:28]} {[%emt 00:00:02]} 3. Nc3
{[%clk 00:25:31]} {[%emt 00:00:05]} dxe4 {[%clk 00:25:35]} {[%emt 00:00:03]} 4.
Nxe4 {[%clk 00:25:34]} {[%emt 00:00:07]} Nf6 {[%clk 00:25:43]} 5. Nxf6+ {[%clk
00:25:35]} {[%emt 00:00:09]} exf6 {[%clk 00:25:51]} {[%emt 00:00:02]} 6. c3
{[%clk 00:25:45]} {[%emt 00:00:02]} Bd6 {[%clk 00:25:58]} {[%emt 00:00:02]} 7.
Bd3 {[%clk 00:25:42]} {[%emt 00:00:13]} O-O {[%clk 00:26:04]} {[%emt 00:00:03]}
8. Ne2 {[%clk 00:25:50]} {[%emt 00:00:03]} Re8 {[%clk 00:26:13]} 9. Qc2 {[%clk
00:25:55]} {[%emt 00:00:05]} g6 {[%clk 00:26:00]} {[%emt 00:00:23]} 10. h4
{[%clk 00:25:48]} {[%emt 00:00:17]} f5 {[%clk 00:25:00]} {[%emt 00:01:11]} 11.
Bg5 {[%clk 00:25:35]} {[%emt 00:00:21]} Be7 {[%clk 00:25:05]} {[%emt 00:00:06]}
12. Qd2 {[%clk 00:24:01]} {[%emt 00:01:44]} Nd7 {[%clk 00:24:36]} {[%emt
00:00:39]} 13. O-O-O {[%clk 00:24:04]} {[%emt 00:00:07]} Nf8 {[%clk 00:24:40]}
{[%emt 00:00:06]} 14. Bh6 {[%clk 00:23:30]} {[%emt 00:00:44]} Ne6 {[%clk
00:24:20]} {[%emt 00:00:30]} 15. h5 {[%clk 00:23:06]} {[%emt 00:00:34]} Bg5
{[%clk 00:21:59]} {[%emt 00:02:31]} 16. Bxg5 {[%clk 00:23:13]} {[%emt
00:00:03]} Qxg5 {[%clk 00:22:07]} {[%emt 00:00:02]} 17. f4 {[%clk 00:23:22]}
{[%emt 00:00:02]} Qg4 {[%clk 00:22:15]} {[%emt 00:00:02]} 18. g3 {[%clk
00:22:15]} {[%emt 00:01:17]} Ng7 {[%clk 00:21:56]} {[%emt 00:00:29]} 19. Rdf1
{[%clk 00:21:32]} {[%emt 00:00:53]} gxh5 {[%clk 00:21:56]} {[%emt 00:00:10]} 20.
Rh4 {[%clk 00:20:27]} {[%emt 00:01:15]} Qg6 {[%clk 00:22:03]} {[%emt 00:00:02]}
21. Rfh1 {[%clk 00:20:14]} {[%emt 00:00:24]} Qe6 {[%clk 00:22:00]} {[%emt
00:00:13]} 22. Kb1 {[%clk 00:19:25]} {[%emt 00:00:59]} Qe3 {[%clk 00:20:59]}
{[%emt 00:01:10]} 23. Qc2 {[%clk 00:19:24]} {[%emt 00:00:12]} Be6 {[%clk
00:20:32]} {[%emt 00:00:36]} 24. g4 {[%clk 00:19:14]} {[%emt 00:00:20]} fxg4
{[%clk 00:20:03]} {[%emt 00:00:40]} 25. Bxh7+ {[%clk 00:19:10]} {[%emt
00:00:14]} Kf8 {[%clk 00:20:08]} {[%emt 00:00:05]} 26. Bd3 {[%clk 00:17:43]}
{[%emt 00:01:37]} Bd5 {[%clk 00:20:11]} {[%emt 00:00:07]} 27. Rc1 {[%clk
00:16:55]} {[%emt 00:00:57]} Qxd3 {[%clk 00:19:40]} {[%emt 00:00:42]} 28. Qxd3
{[%clk 00:17:04]} {[%emt 00:00:01]} Be4 {[%clk 00:19:49]} {[%emt 00:00:01]} 29.
Kc2 {[%clk 00:16:15]} {[%emt 00:00:59]} Bxd3+ {[%clk 00:19:37]} {[%emt
00:00:22]} 30. Kxd3 {[%clk 00:16:23]} {[%emt 00:00:02]} Nf5 {[%clk 00:19:25]}
{[%emt 00:00:22]} 31. Rxh5 {[%clk 00:16:06]} {[%emt 00:00:27]} Re3+ {[%clk
00:18:39]} {[%emt 00:00:55]} 32. Kc4 {[%clk 00:16:14]} {[%emt 00:00:02]} Nd6+
{[%clk 00:18:25]} {[%emt 00:00:24]} 33. Kb3 {[%clk 00:16:07]} {[%emt 00:00:18]}
Kg7 {[%clk 00:18:08]} {[%emt 00:00:27]} 34. Rg5+ {[%clk 00:14:12]} {[%emt
00:02:06]} Kf6 {[%clk 00:14:44]} {[%emt 00:03:34]} 35. Ng1 {[%clk 00:13:36]}
{[%emt 00:00:45]} Rg3 {[%clk 00:14:53]} {[%emt 00:00:02]} 36. Re1 {[%clk
00:12:14]} {[%emt 00:01:32]} Rh8 {[%clk 00:14:25]} {[%emt 00:00:37]} 37. Ne2
{[%clk 00:11:28]} {[%emt 00:00:57]} Re3 {[%clk 00:12:38]} {[%emt 00:01:56]} 38.
Re5 {[%clk 00:11:34]} {[%emt 00:00:04]} Re8 {[%clk 00:12:40]} {[%emt 00:00:09]}
39. Rh1 {[%clk 00:11:43]} Kg6 {[%clk 00:10:11]} {[%emt 00:02:39]} 40. Rg5+
{[%clk 00:10:02]} {[%emt 00:01:51]} Kf6 {[%clk 00:10:18]} {[%emt 00:00:02]} 41.
Nc1 {[%clk 00:07:44]} {[%emt 00:02:29]} Rh3 {[%clk 00:08:44]} {[%emt 00:01:45]}
42. Rg1 {[%clk 00:05:48]} {[%emt 00:02:05]} Nf5 {[%clk 00:08:16]} {[%emt
00:00:38]} 43. R5xg4 {[%clk 00:04:33]} {[%emt 00:01:26]} Nxd4+ {[%clk
00:08:03]} {[%emt 00:00:22]} 44. Ka3 {[%clk 00:03:23]} {[%emt 00:01:20]} Nc2+
{[%clk 00:06:21]} {[%emt 00:01:51]} 45. Kb3 {[%clk 00:03:02]} {[%emt 00:00:31]}
Nd4+ {[%clk 00:06:29]} {[%emt 00:00:03]} 1/2-1/2

[Event "Snabbschacks-SM 2025"]
[Site "Norrköping, Sweden"]
[Date "2025.09.27"]
[Round "2.10"]
[White "Stenman, Christoffer"]
[Black "Ostling, Hakan"]
[Result "1-0"]
[TimeControl "25 min + 10 sec/move"]
[WhiteElo "2004"]
[BlackElo "2117"]

1. e4 {[%clk 00:25:16]} {[%emt 00:00:03]} g6 {[%clk 00:25:13]} {[%emt
00:00:08]} 2. d4 {[%clk 00:25:16]} {[%emt 00:00:10]} Bg7 {[%clk 00:25:19]}
{[%emt 00:00:03]} 3. Nc3 {[%clk 00:25:07]} {[%emt 00:00:19]} d6 {[%clk
00:25:21]} {[%emt 00:00:08]} 4. Be3 {[%clk 00:23:14]} {[%emt 00:02:04]} a6
{[%clk 00:25:10]} {[%emt 00:00:22]} 5. Nf3 {[%clk 00:23:13]} {[%emt 00:00:10]}
Nd7 {[%clk 00:25:14]} {[%emt 00:00:06]} 6. Qd2 {[%clk 00:22:56]} {[%emt
00:00:27]} b5 {[%clk 00:25:10]} {[%emt 00:00:13]} 7. a3 {[%clk 00:22:30]}
{[%emt 00:00:36]} Bb7 {[%clk 00:25:12]} {[%emt 00:00:08]} 8. h3 {[%clk
00:21:02]} {[%emt 00:01:38]} e6 {[%clk 00:24:35]} {[%emt 00:00:48]} 9. Bg5
{[%clk 00:20:14]} {[%emt 00:00:58]} Qb8 {[%clk 00:24:02]} {[%emt 00:00:42]} 10.
Be2 {[%clk 00:19:34]} {[%emt 00:00:50]} h6 {[%clk 00:24:07]} {[%emt 00:00:06]}
11. Be3 {[%clk 00:19:41]} {[%emt 00:00:02]} Ngf6 {[%clk 00:23:52]} {[%emt
00:00:25]} 12. e5 {[%clk 00:19:29]} {[%emt 00:00:23]} dxe5 {[%clk 00:24:01]}
{[%emt 00:00:01]} 13. dxe5 {[%clk 00:19:22]} {[%emt 00:00:17]} Nd5 {[%clk
00:24:09]} {[%emt 00:00:03]} 14. Nxd5 {[%clk 00:19:21]} {[%emt 00:00:10]} Bxd5
{[%clk 00:24:03]} {[%emt 00:00:15]} 15. Rd1 {[%clk 00:18:28]} {[%emt 00:01:03]}
c5 {[%clk 00:19:11]} {[%emt 00:05:03]} 16. c4 {[%clk 00:14:46]} {[%emt
00:03:51]} Bc6 {[%clk 00:19:16]} {[%emt 00:00:05]} 17. O-O {[%clk 00:14:06]}
{[%emt 00:00:50]} Qb7 {[%clk 00:15:47]} {[%emt 00:03:39]} 18. cxb5 {[%clk
00:12:46]} {[%emt 00:01:31]} axb5 {[%clk 00:15:56]} {[%emt 00:00:01]} 19. Rc1
{[%clk 00:06:48]} {[%emt 00:06:08]} c4 {[%clk 00:14:07]} {[%emt 00:01:59]} 20.
Rfd1 {[%clk 00:06:26]} {[%emt 00:00:31]} Nxe5 {[%clk 00:10:56]} {[%emt
00:03:21]} 21. Ne1 {[%clk 00:03:41]} {[%emt 00:02:55]} Qe7 {[%clk 00:09:50]}
{[%emt 00:01:17]} 22. a4 {[%clk 00:03:08]} {[%emt 00:00:42]} Rxa4 {[%clk
00:06:53]} {[%emt 00:03:08]} 23. f4 {[%clk 00:03:14]} {[%emt 00:00:04]} Nd7
{[%clk 00:06:57]} {[%emt 00:00:06]} 24. b3 {[%clk 00:03:23]} c3 {[%clk
00:06:54]} {[%emt 00:00:13]} 25. Rxc3 {[%clk 00:02:59]} {[%emt 00:00:34]} Ra6
{[%clk 00:06:34]} {[%emt 00:00:30]} 26. Bxb5 {[%clk 00:02:17]} {[%emt
00:00:52]} Bxc3 {[%clk 00:06:27]} {[%emt 00:00:17]} 27. Qxc3 {[%clk 00:02:23]}
{[%emt 00:00:04]} Bxb5 {[%clk 00:06:28]} {[%emt 00:00:08]} 28. Qxh8+ {[%clk
00:02:29]} {[%emt 00:00:04]} Nf8 {[%clk 00:06:38]} 29. Qe5 {[%clk 00:02:20]}
{[%emt 00:00:20]} Qb7 {[%clk 00:05:51]} {[%emt 00:00:58]} 30. Bc5 {[%clk
00:01:31]} {[%emt 00:00:58]} Ra8 {[%clk 00:03:59]} {[%emt 00:02:02]} 31. Qg7
{[%clk 00:01:03]} {[%emt 00:00:36]} 1-0

[Event "Snabbschacks-SM 2025"]
[Site "Norrköping, Sweden"]
[Date "2025.09.27"]
[Round "4.6"]
[White "Livner, Anders"]
[Black "Jonsson, Krister"]
[Result "1-0"]
[TimeControl "25 min + 10 sec/move"]
[WhiteTitle "FM"]
[WhiteElo "2292"]
[BlackElo "2022"]

1. Nf3 {[%clk 00:24:19]} {[%emt 00:01:00]} f5 {[%clk 00:25:02]} {[%emt
00:00:18]} 2. g3 {[%clk 00:24:25]} {[%emt 00:00:05]} Nf6 {[%clk 00:25:10]}
{[%emt 00:00:02]} 3. Bg2 {[%clk 00:24:31]} {[%emt 00:00:03]} g6 {[%clk
00:25:18]} {[%emt 00:00:03]} 4. b4 {[%clk 00:24:36]} {[%emt 00:00:05]} Bg7
{[%clk 00:25:24]} {[%emt 00:00:04]} 5. Bb2 {[%clk 00:24:44]} {[%emt 00:00:01]}
O-O {[%clk 00:25:26]} {[%emt 00:00:07]} 6. O-O {[%clk 00:24:49]} {[%emt
00:00:06]} d6 {[%clk 00:25:06]} {[%emt 00:00:31]} 7. d4 {[%clk 00:24:54]}
{[%emt 00:00:05]} c6 {[%clk 00:24:48]} {[%emt 00:00:28]} 8. c4 {[%clk
00:24:41]} {[%emt 00:00:23]} Qe8 {[%clk 00:22:17]} {[%emt 00:02:41]} 9. Nbd2
{[%clk 00:24:00]} {[%emt 00:00:50]} Na6 {[%clk 00:22:06]} {[%emt 00:00:21]} 10.
Qb3 {[%clk 00:22:25]} {[%emt 00:01:46]} Nc7 {[%clk 00:22:03]} {[%emt 00:00:13]}
11. a4 {[%clk 00:21:55]} {[%emt 00:00:40]} h6 {[%clk 00:21:28]} {[%emt
00:00:44]} 12. b5 {[%clk 00:21:28]} {[%emt 00:00:38]} Bd7 {[%clk 00:21:31]}
{[%emt 00:00:07]} 13. e3 {[%clk 00:19:37]} {[%emt 00:02:00]} g5 {[%clk
00:19:35]} {[%emt 00:02:06]} 14. Ne1 {[%clk 00:12:52]} {[%emt 00:06:56]} Rb8
{[%clk 00:16:17]} {[%emt 00:03:28]} 15. Nd3 {[%clk 00:12:31]} {[%emt 00:00:31]}
Qg6 {[%clk 00:15:08]} {[%emt 00:01:19]} 16. Rae1 {[%clk 00:08:23]} {[%emt
00:04:18]} Ne4 {[%clk 00:13:24]} {[%emt 00:01:54]} 17. Qc2 {[%clk 00:07:55]}
{[%emt 00:00:37]} Rbc8 {[%clk 00:10:21]} {[%emt 00:03:14]} 18. bxc6 {[%clk
00:07:03]} {[%emt 00:01:02]} bxc6 {[%clk 00:10:26]} {[%emt 00:00:05]} 19. f3
{[%clk 00:06:56]} {[%emt 00:00:18]} Nxd2 20. Qxd2 {[%clk 00:07:05]} Be6 {[%clk
00:09:43]} {[%emt 00:00:52]} 21. Rc1 {[%clk 00:06:13]} {[%emt 00:01:02]} Rb8
{[%clk 00:09:36]} {[%emt 00:00:17]} 22. Nb4 {[%clk 00:05:55]} {[%emt 00:00:29]}
Bd7 {[%clk 00:09:08]} {[%emt 00:00:38]} 23. f4 {[%clk 00:05:54]} {[%emt
00:00:11]} c5 {[%clk 00:08:39]} {[%emt 00:00:38]} 24. Nd3 {[%clk 00:03:59]}
{[%emt 00:02:05]} cxd4 {[%clk 00:08:24]} {[%emt 00:00:25]} 25. Bxd4 {[%clk
00:04:08]} {[%emt 00:00:01]} Bxd4 {[%clk 00:08:23]} {[%emt 00:00:11]} 26. exd4
{[%clk 00:04:18]} Rb3 {[%clk 00:07:23]} {[%emt 00:01:11]} 27. c5 {[%clk
00:03:52]} {[%emt 00:00:36]} Qf6 {[%clk 00:06:38]} {[%emt 00:00:54]} 28. cxd6
{[%clk 00:02:27]} {[%emt 00:01:35]} Qxd4+ {[%clk 00:06:34]} {[%emt 00:00:14]}
29. Qf2 {[%clk 00:02:35]} {[%emt 00:00:02]} Qxd6 {[%clk 00:05:05]} {[%emt
00:01:39]} 30. Nc5 {[%clk 00:02:39]} {[%emt 00:00:06]} Be6 {[%clk 00:04:23]}
{[%emt 00:00:52]} 31. Nxb3 {[%clk 00:01:54]} {[%emt 00:00:55]} Bxb3 {[%clk
00:04:31]} {[%emt 00:00:02]} 32. Qxa7 {[%clk 00:01:53]} {[%emt 00:00:11]} Ne6
{[%clk 00:03:43]} {[%emt 00:00:58]} 33. fxg5 {[%clk 00:01:42]} {[%emt
00:00:21]} hxg5 {[%clk 00:03:50]} {[%emt 00:00:03]} 34. a5 {[%clk 00:01:19]}
{[%emt 00:00:34]} g4 {[%clk 00:03:20]} {[%emt 00:00:39]} 35. Qe3 {[%clk
00:00:56]} {[%emt 00:00:30]} Qd4 {[%clk 00:02:12]} {[%emt 00:01:20]} 36. Rfe1
{[%clk 00:01:00]} {[%emt 00:00:06]} Kf7 {[%clk 00:02:04]} {[%emt 00:00:18]} 37.
a6 {[%clk 00:00:59]} {[%emt 00:00:12]} Rd8 {[%clk 00:01:26]} {[%emt 00:00:48]}
38. a7 {[%clk 00:00:50]} {[%emt 00:00:19]} 1-0